bitfinex-derivatives/quotes_BNBF0:USTF0_20250511
["timestamp","ask_amount","ask_price","bid_price","bid_amount"]
[1746942319574,0.29985906,666.98,666.0,0.54841601]
[1746942319771,0.29985906,666.98,666.01,0.54841601]
[1746942320075,0.24336989,666.97,666.02,0.54841601]
[1746942320274,0.29987255,666.95,666.03,0.54841601]
[1746942320468,0.29987255,666.95,666.04,0.54841601]
[1746942320671,0.24332721,666.94,666.05,0.54841601]
[1746942320871,0.24332721,666.94,666.06,0.54841601]
[1746942321074,0.24332721,666.94,666.07,0.54808101]
[1746942321276,0.24332721,666.94,666.08,0.54808101]
[1746942321574,0.24332721,666.94,666.09,0.54808101]
[1746942321874,0.24332721,666.94,666.1,0.54808101]
[1746942322073,0.24332721,666.94,666.11,0.54808101]
[1746942322373,0.24332721,666.94,665.8,0.26107604]
[1746942322570,0.24332721,666.94,665.81,1.74663654]
[1746942322773,0.24332721,666.94,665.82,0.54796347]
[1746942323074,0.24332721,666.94,665.81,1.19867307]
[1746942323075,0.29988604,666.92,665.83,0.54796347]
[1746942323271,0.29988604,666.92,665.84,0.54796347]
[1746942323475,0.24332721,666.91,665.85,1.74663654]
[1746942323676,0.24332721,666.91,665.86,0.54796347]
[1746942323976,0.24332721,666.91,665.87,1.74663654]
[1746942324170,0.29988604,666.92,665.88,0.54796347]
[1746942324368,0.29988604,666.92,665.89,0.54796347]
[1746942324576,0.24332378,666.91,665.9,1.74663654]
[1746942324772,0.29989953,666.89,665.91,0.54796347]
[1746942324978,0.29989953,666.89,665.92,1.74663654]
[1746942325278,0.24332378,666.88,665.93,1.74663654]
[1746942325474,0.24332378,666.88,665.94,0.54796347]
[1746942325475,0.29991302,666.86,665.94,0.54796347]
[1746942325779,0.29991302,666.86,665.95,1.74663654]
[1746942325978,0.24332378,666.85,665.96,0.54796347]
[1746942326179,0.29992202,666.84,665.97,1.74663654]
[1746942326378,0.29992202,666.84,665.98,0.54815882]
[1746942326580,0.29992202,666.84,665.99,0.54815882]
[1746942326880,0.29992202,666.84,666.0,0.54815882]
[1746942327073,0.29992202,666.84,666.01,0.54815882]
[1746942327275,0.24332378,666.83,666.02,0.54815882]
[1746942327581,0.29993551,666.81,665.96,0.319]
[1746942327882,0.24332378,666.8,665.97,0.54819459]
[1746942328078,0.29994451,666.79,665.98,0.54819459]
[1746942328280,0.29994451,666.79,665.99,0.54819459]
[1746942328479,0.29994451,666.79,666.0,0.54819459]
[1746942328679,0.24332378,666.78,666.01,0.54819459]
[1746942328881,0.2999535,666.77,666.02,0.54819459]
[1746942329081,0.2999535,666.77,665.96,0.319]
[1746942329281,0.2999535,666.77,665.97,0.54831509]
[1746942329477,0.2999535,666.77,665.98,0.54831509]
[1746942329681,0.2999535,666.77,665.99,0.54831509]
[1746942329878,0.2999535,666.77,666.0,0.54831509]
[1746942330082,0.24332378,666.76,666.01,0.54831509]
[1746942330283,0.2999625,666.75,666.02,0.54831509]
[1746942330476,0.2999625,666.75,666.03,0.54831509]
[1746942330676,0.24332378,666.74,665.96,0.319]
[1746942330881,0.2999715,666.73,665.97,0.5486034]
[1746942331180,0.2999715,666.73,665.96,0.319]
[1746942331181,0.24332378,666.72,665.98,0.5486034]
[1746942331375,0.2999805,666.71,665.99,0.5486034]
[1746942331580,0.2999805,666.71,666.0,0.54867099]
[1746942331876,0.24332378,666.7,666.01,0.54867099]
[1746942332075,0.2999895,666.69,666.02,0.54867099]
[1746942332280,0.2999895,666.69,666.03,0.54867099]
[1746942332480,0.2999895,666.69,666.04,0.54867099]
[1746942332682,0.2999895,666.69,666.05,0.54867099]
[1746942332884,0.2999895,666.69,666.06,0.54867099]
[1746942333084,0.2999895,666.69,666.07,0.54867099]
[1746942333281,0.2999895,666.69,666.08,0.54847534]
[1746942333479,0.2999895,666.69,666.09,0.54847534]
[1746942333786,0.2999895,666.69,666.1,0.54847534]
[1746942334079,0.2999895,666.69,666.11,0.54847534]
[1746942334279,0.2999895,666.69,666.12,0.54847534]
[1746942334480,0.2999895,666.69,666.13,0.54847534]
[1746942334782,0.2999895,666.69,665.96,0.319]
[1746942334980,0.2999895,666.69,665.97,0.54848642]
[1746942335180,0.2999895,666.69,665.98,1.74830405]
[1746942335380,0.2999895,666.69,665.99,0.54848642]
[1746942335585,0.2999895,666.69,666.0,0.54848642]
[1746942335779,0.2999895,666.69,666.01,0.54848642]
[1746942335983,0.2999895,666.69,666.02,0.54848642]
[1746942336280,0.2999895,666.69,666.03,0.54848642]
[1746942336583,0.2999895,666.69,666.04,0.54848642]
[1746942336782,0.2999895,666.69,666.05,0.54850091]
[1746942336982,0.2999895,666.69,666.06,0.54850091]
[1746942337179,0.2999895,666.69,666.07,0.54850091]
[1746942337385,0.2999895,666.69,666.08,0.54850091]
[1746942337578,0.2999895,666.69,666.09,0.54850091]
[1746942337780,0.2999895,666.69,666.1,0.54850091]
[1746942337980,0.2999895,666.69,666.11,0.54850091]
[1746942338185,0.2999895,666.69,666.12,0.54850091]
[1746942338379,0.2999895,666.69,666.13,0.54850091]
[1746942338580,0.2999895,666.69,666.14,0.54850091]
[1746942338781,0.2999895,666.69,666.15,0.54850091]
[1746942338982,0.2999895,666.69,666.16,0.54850091]
[1746942339184,0.2999895,666.69,666.17,0.54850091]
[1746942339379,0.2999895,666.69,666.18,0.54850091]
[1746942339585,0.2999895,666.69,665.96,0.319]
[1746942339785,0.2999895,666.69,665.97,0.5486681]
[1746942339980,0.2999895,666.69,665.98,0.5486681]
[1746942340182,0.2999895,666.69,665.99,0.5486681]
[1746942340379,0.2999895,666.69,666.0,0.5486681]
[1746942340579,0.2999895,666.69,666.01,0.5486681]
[1746942340780,0.2999895,666.69,666.02,1.74887349]
[1746942340985,0.2999895,666.69,666.03,0.5486681]
[1746942341186,0.2999895,666.69,666.04,1.74887349]
[1746942341387,0.2999895,666.69,666.05,0.5486681]
[1746942341580,0.2999895,666.69,666.06,0.5486681]
[1746942341781,0.2999895,666.69,666.07,0.5486681]
[1746942342086,0.2999895,666.69,666.08,0.54872941]
[1746942342286,0.2999895,666.69,666.09,0.54872941]
[1746942342581,0.2999895,666.69,666.1,0.54872941]
[1746942342786,0.2999895,666.69,666.11,0.54872941]
[1746942342986,0.2999895,666.69,666.12,0.54872941]
[1746942343187,0.2999895,666.69,666.13,0.54872941]
[1746942343387,0.2999895,666.69,666.14,0.54872941]
[1746942343590,0.2999895,666.69,666.15,0.54872941]
[1746942343789,0.2999895,666.69,666.16,0.54881235]
[1746942343987,0.2999895,666.69,666.17,0.54881235]
[1746942344287,0.24329463,666.68,666.18,0.54881235]
[1746942344490,0.24329463,666.68,665.96,0.319]
[1746942344787,0.24329463,666.68,665.97,0.54886256]
[1746942344988,0.24329463,666.68,665.98,0.54886256]
[1746942345182,0.24329463,666.68,665.99,0.54886256]
[1746942345381,0.2999985,666.67,666.0,0.54886256]
[1746942345588,0.2999985,666.67,666.01,0.54886256]
[1746942345890,0.2999985,666.67,666.02,0.54886256]
[1746942346087,0.2999985,666.67,666.03,0.54886256]
[1746942346286,0.2999985,666.67,666.04,0.54886256]
[1746942346487,0.2999985,666.67,666.05,0.54886256]
[1746942346688,0.2999985,666.67,666.06,0.54886256]
[1746942346883,0.2999985,666.67,665.96,0.319]
[1746942347085,0.2999985,666.67,665.59,0.07039002]
[1746942347285,0.2999985,666.67,665.6,0.54946697]
[1746942347484,0.24333076,666.66,665.65,0.26119753]
[1746942347784,0.24333076,666.66,665.66,0.54946697]
[1746942347990,0.24333076,666.66,665.67,1.75231888]
[1746942348190,0.24333076,666.66,665.68,0.54946697]
[1746942348386,0.24333076,666.66,665.69,1.75231888]
[1746942348594,0.24333076,666.66,665.7,0.54946697]
[1746942348791,0.24333076,666.66,665.71,1.75231888]
[1746942348991,0.24333076,666.66,665.72,0.5496991]
[1746942349290,0.24333076,666.66,665.73,1.75255101]
[1746942349490,0.24333076,666.66,665.74,0.5496991]
[1746942349691,0.24333076,666.66,665.75,1.75255101]
[1746942349991,0.24333076,666.66,665.76,0.5496991]
[1746942350191,0.24333076,666.66,665.77,0.5496991]
[1746942350388,0.24333076,666.66,665.78,0.5496991]
[1746942350589,0.24333076,666.66,665.79,0.5496991]
[1746942350791,0.24333076,666.66,665.8,0.5496991]
[1746942350988,0.24333076,666.66,665.81,0.5496991]
[1746942351188,0.24333076,666.66,665.82,0.5496991]
[1746942351390,0.300012,666.64,665.83,0.5496991]
[1746942351585,0.300012,666.64,665.84,0.5496991]
[1746942351790,0.300012,666.64,665.85,0.5496991]
[1746942351985,0.24333076,666.63,665.86,0.5496991]
[1746942352192,0.24333076,666.63,665.87,0.5496991]
[1746942352394,0.24333076,666.63,665.88,0.5496991]
[1746942352694,0.24333076,666.63,665.89,0.5496991]
[1746942352890,0.24333076,666.63,665.9,0.5496991]
[1746942353088,0.24333076,666.63,665.91,0.5496991]
[1746942353292,0.24333076,666.63,665.92,0.5496991]
[1746942353491,0.300021,666.62,665.93,0.5496991]
[1746942353692,0.24333076,666.61,665.94,0.54997695]
[1746942353992,0.30003,666.6,665.77,0.453]
[1746942354191,0.30003,666.6,665.78,0.54997858]
[1746942354395,0.30003,666.6,665.79,0.54997858]
[1746942354595,0.24333076,666.59,665.8,0.54997858]
[1746942354795,0.300039,666.58,665.81,0.54997858]
[1746942354992,0.300039,666.58,665.82,0.54997858]
[1746942355192,0.24333076,666.57,665.83,0.54997858]
[1746942355391,0.300048,666.56,665.84,0.54997858]
[1746942355592,0.24333076,666.55,665.85,0.54997858]
[1746942355793,0.24333076,666.55,665.77,0.453]
[1746942355794,0.30005701,666.54,665.86,0.54997858]
[1746942355991,0.30005701,666.54,665.87,0.54997858]
[1746942356194,0.30005701,666.54,665.88,0.54997858]
[1746942356493,0.24333076,666.53,665.89,0.54997858]
[1746942356693,0.30006601,666.52,665.9,0.54997858]
[1746942356894,0.30006601,666.52,665.91,0.54997858]
[1746942357095,0.30006601,666.52,665.92,0.54997858]
[1746942357296,0.24333076,666.51,665.93,0.54997858]
[1746942357495,0.30007501,666.5,665.94,0.54997858]
[1746942357697,0.30007501,666.5,665.95,0.54997858]
[1746942357900,0.24333076,666.49,665.96,0.54997858]
[1746942358197,0.30008402,666.48,665.77,0.453]
[1746942358397,0.30008402,666.48,665.78,0.55026593]
[1746942358597,0.24333076,666.47,665.79,0.55026593]
[1746942358798,0.30009302,666.46,665.8,0.55026593]
[1746942358999,0.30009302,666.46,665.81,0.55026593]
[1746942359195,0.30009302,666.46,665.82,0.55026593]
[1746942359397,0.24337158,666.45,665.83,0.55026593]
[1746942359598,0.30010203,666.44,665.84,0.5503393]
[1746942359799,0.30010203,666.44,665.85,0.5503393]
[1746942359998,0.30010203,666.44,665.86,0.5503393]
[1746942360199,0.24337158,666.43,665.87,0.5503393]
[1746942360397,0.24337158,666.43,665.77,0.453]
[1746942360398,0.54347811,666.43,665.88,0.5503393]
[1746942360596,0.30011104,666.42,665.89,0.5503393]
[1746942360801,0.30011104,666.42,665.9,0.5503393]
[1746942361001,0.24337158,666.41,665.91,0.5503393]
[1746942361207,0.24337158,666.41,665.92,0.5503393]
[1746942361401,0.24337158,666.41,665.93,0.5503393]
[1746942361603,0.30011104,666.42,665.94,0.5503393]
[1746942361798,0.30011104,666.42,665.95,0.5503393]
[1746942362005,0.30011104,666.42,665.77,0.453]
[1746942362198,0.30011104,666.42,665.78,0.55038359]
[1746942362503,0.30011104,666.42,665.79,0.55038359]
[1746942362703,0.30011104,666.42,665.8,0.55038359]
[1746942362898,0.30011104,666.42,665.81,0.55038359]
[1746942363101,0.30011104,666.42,665.82,0.55038359]
[1746942363300,0.30011104,666.42,665.83,0.55038359]
[1746942363501,0.30011104,666.42,665.84,0.55038359]
[1746942363698,0.30011104,666.42,665.85,0.55038359]
[1746942363899,0.30011104,666.42,665.86,0.55038359]
[1746942364103,0.30011104,666.42,665.87,0.55038359]
[1746942364305,0.30011104,666.42,665.88,0.55038359]
[1746942364505,0.30011104,666.42,665.89,0.55038359]
[1746942364804,0.30011104,666.42,665.9,0.55038359]
[1746942365004,0.30011104,666.42,665.91,0.55038359]
[1746942365205,0.30011104,666.42,665.92,0.55038359]
[1746942365405,0.30011104,666.42,665.77,0.453]
[1746942365406,0.30011104,666.42,665.93,0.55038359]
[1746942365605,0.30011104,666.42,665.77,0.453]
[1746942365807,0.30011104,666.42,665.78,0.55046268]
[1746942366007,0.30011104,666.42,665.79,0.55046844]
[1746942366213,0.30011104,666.42,665.8,0.55046844]
[1746942366401,0.30011104,666.42,665.77,0.453]
[1746942366402,0.30011104,666.42,665.81,0.55046844]
[1746942366604,0.30011104,666.42,665.82,0.55046844]
[1746942366805,0.30011104,666.42,665.83,0.55046844]
[1746942367003,0.30011104,666.42,665.84,0.55046844]
[1746942367201,0.30011104,666.42,665.85,0.55046844]
[1746942367402,0.30011104,666.42,665.86,0.55046844]
[1746942367602,0.30011104,666.42,665.87,0.55046904]
[1746942367807,0.24331603,666.41,665.88,0.55046597]
[1746942368007,0.30011104,666.42,665.77,0.453]
[1746942368207,0.30011104,666.42,665.78,0.55046593]
[1746942368404,0.30011104,666.42,665.79,0.55046593]
[1746942368603,0.30011104,666.42,665.8,0.55046593]
[1746942368810,0.30011104,666.42,665.81,0.55046593]
[1746942369011,0.30011104,666.42,665.82,0.55046593]
[1746942369311,0.30011104,666.42,665.83,0.55046593]
[1746942369511,0.30011104,666.42,665.84,0.55044315]
[1746942369713,0.30011104,666.42,665.85,0.55044315]
[1746942369913,0.30011104,666.42,665.86,0.55044315]
[1746942370113,0.30011104,666.42,665.87,0.55044315]
[1746942370310,0.30011104,666.42,665.88,0.55044315]
[1746942370614,0.30011104,666.42,665.89,0.55044315]
[1746942370815,0.30011104,666.42,665.9,0.55044315]
[1746942371017,0.30011104,666.42,665.77,0.453]
[1746942371210,0.30011104,666.42,665.78,0.55045935]
[1746942371412,0.30011104,666.42,665.79,0.55045935]
[1746942371615,0.24333084,666.41,665.8,0.55045935]
[1746942371812,0.24333084,666.41,665.81,0.55045935]
[1746942372010,0.24333084,666.41,665.82,0.55045935]
[1746942372210,0.24333084,666.41,665.83,0.55045935]
[1746942372423,0.24333084,666.41,665.84,0.55045935]
[1746942372716,0.24333084,666.41,665.85,0.55045935]
[1746942372936,0.24333084,666.41,665.86,0.55045935]
[1746942373114,0.24333084,666.41,665.87,0.55042156]
[1746942373315,0.24333084,666.41,665.88,0.55042156]
[1746942373513,0.24333084,666.41,665.77,0.453]
[1746942373713,0.24333084,666.41,665.78,0.55040668]
[1746942373912,0.24333084,666.41,665.79,0.55040668]
[1746942374113,0.24333084,666.41,665.8,0.55040668]
[1746942374316,0.24333084,666.41,665.81,0.55040668]
[1746942374517,0.24333084,666.41,665.82,0.55040668]
[1746942374712,0.24333084,666.41,665.77,0.453]
[1746942374915,0.24333084,666.41,665.78,0.55038217]
[1746942375114,0.24333084,666.41,665.79,0.55038217]
[1746942375418,0.24333084,666.41,665.8,0.55038217]
[1746942375617,0.24333084,666.41,665.81,0.55038217]
[1746942375819,0.24333084,666.41,665.82,0.55038217]
[1746942376016,0.24333084,666.41,665.62,0.26122988]
[1746942376221,0.24333084,666.41,665.63,0.55038184]
[1746942376521,0.24333084,666.41,665.64,0.55028809]
[1746942376719,0.24333084,666.41,665.65,0.55028809]
[1746942376914,0.24333084,666.41,665.66,0.55028809]
[1746942377121,0.24333084,666.41,665.67,0.55028809]
[1746942377324,0.24333084,666.41,665.68,0.55028809]
[1746942377616,0.24333084,666.41,665.69,0.55028809]
[1746942377815,0.24333084,666.41,665.7,0.55028809]
[1746942378020,0.24333084,666.41,665.59,0.07039002]
[1746942378220,0.24333084,666.41,665.6,0.55020035]
[1746942378416,0.24333084,666.41,665.61,0.55020035]
[1746942378621,0.24333084,666.41,665.62,0.55020035]
[1746942378921,0.24333084,666.41,665.63,0.55020035]
[1746942379119,0.24333084,666.41,665.59,0.07039002]
[1746942379423,0.24333084,666.41,665.64,0.418]
[1746942379921,0.30012004,666.4,665.64,0.418]
[1746942380124,0.24333084,666.39,665.64,0.418]
[1746942380820,0.30012905,666.38,665.64,0.418]
[1746942381120,0.24333084,666.37,665.64,0.418]
[1746942382325,0.30012905,666.38,665.64,0.418]
[1746942382624,0.24318584,666.37,665.64,0.418]
[1746942383223,0.30013806,666.36,665.64,0.418]
[1746942384218,0.24318584,666.35,665.64,0.418]
[1746942384417,0.30014707,666.34,665.64,0.418]
[1746942384823,0.24318584,666.33,665.64,0.418]
[1746942385025,0.24318584,666.33,665.65,0.54932805]
[1746942385322,0.30014707,666.34,665.66,0.54932805]
[1746942385523,0.30014707,666.34,665.67,0.54932805]
[1746942385823,0.30014707,666.34,665.68,0.54932805]
[1746942386020,0.24323285,666.33,665.69,0.54932805]
[1746942386218,0.24323285,666.33,665.7,0.54932805]
[1746942386416,0.24323285,666.33,665.71,0.54932805]
[1746942386722,0.24323285,666.33,665.72,0.54932805]
[1746942386922,0.24323285,666.33,665.73,0.54932805]
[1746942387123,0.24323285,666.33,665.74,0.54932805]
[1746942387319,0.30014707,666.34,665.75,0.54932805]
[1746942387521,0.30014707,666.34,665.76,0.54932805]
[1746942387823,0.30014707,666.34,665.77,1.75102527]
[1746942388023,0.30014707,666.34,665.78,0.54932805]
[1746942388324,0.30014707,666.34,665.79,0.54932805]
[1746942388523,0.30014707,666.34,665.8,0.54932805]
[1746942388723,0.30014707,666.34,665.81,0.54932805]
[1746942388923,0.30014707,666.34,665.82,0.54919667]
[1746942389123,0.30014707,666.34,665.83,0.54919667]
[1746942389423,0.30014707,666.34,665.84,0.54919667]
[1746942389623,0.30014707,666.34,665.85,0.54919667]
[1746942389823,0.30014707,666.34,665.86,0.54919667]
[1746942390122,0.30014707,666.34,665.87,0.54919667]
[1746942390323,0.30014707,666.34,665.88,0.54919667]
[1746942390518,0.30014707,666.34,665.89,0.54919667]
[1746942390721,0.30014707,666.34,665.9,0.54926797]
[1746942390918,0.30014707,666.34,665.91,0.54926797]
[1746942391123,0.30014707,666.34,665.64,0.418]
[1746942391322,0.30014707,666.34,665.65,0.54927473]
[1746942391526,0.30014707,666.34,665.66,1.75133275]
[1746942391727,0.30014707,666.34,665.67,0.54927473]
[1746942391926,0.30014707,666.34,665.68,0.54927473]
[1746942392128,0.30014707,666.34,665.69,0.54927473]
[1746942392321,0.30014707,666.34,665.7,0.54927473]
[1746942392523,0.30014707,666.34,665.71,0.54927473]
[1746942392722,0.30014707,666.34,665.72,0.54927473]
[1746942392922,0.30014707,666.34,665.73,0.54927473]
[1746942393127,0.30014707,666.34,665.74,0.54927473]
[1746942393324,0.30014707,666.34,665.75,0.54927473]
[1746942393529,0.2430471,666.33,665.76,0.54927473]
[1746942393728,0.2430471,666.33,665.77,0.54927473]
[1746942394027,0.2430471,666.33,665.78,0.54927473]
[1746942394224,0.2430471,666.33,665.64,0.418]
[1746942394430,0.2430471,666.33,665.65,0.54966109]
[1746942394630,0.2430471,666.33,665.66,0.54966109]
[1746942394829,0.30014707,666.34,665.67,0.54966109]
[1746942395029,0.30014707,666.34,665.68,0.54966109]
[1746942395226,0.24298349,666.33,665.69,0.54966109]
[1746942395429,0.24298349,666.33,665.7,0.54966109]
[1746942395629,0.24298349,666.33,665.71,0.54966109]
[1746942395825,0.24298349,666.33,665.64,0.418]
[1746942395826,0.24298349,666.33,665.72,0.54966109]
[1746942396024,0.24298349,666.33,665.73,0.54966109]
[1746942396227,0.24298349,666.33,665.74,0.54966109]
[1746942396429,0.24298349,666.33,665.75,0.54966109]
[1746942396629,0.24298349,666.33,665.76,0.54966109]
[1746942396830,0.24298349,666.33,665.77,0.54966109]
[1746942397129,0.24298349,666.33,665.59,0.07039002]
[1746942397330,0.24298349,666.33,665.6,0.54994827]
[1746942397529,0.24298349,666.33,665.61,0.54994827]
[1746942397723,0.24298349,666.33,665.62,0.54994827]
[1746942397928,0.24298349,666.33,665.63,0.54994827]
[1746942398227,0.24298349,666.33,665.64,0.54994827]
[1746942398427,0.24298349,666.33,665.65,0.54994827]
[1746942398627,0.24298349,666.33,665.66,0.54994827]
[1746942398828,0.24298349,666.33,665.67,0.54994827]
[1746942399026,0.24298349,666.33,665.68,0.54994827]
[1746942399229,0.24298349,666.33,665.69,0.54994827]
[1746942399431,0.24298349,666.33,665.7,0.54994827]
[1746942399628,0.24298349,666.33,665.71,0.54994827]
[1746942399829,0.24298349,666.33,665.72,0.87417138]
[1746942400025,0.24298349,666.33,665.72,0.324]
[1746942400925,0.30015608,666.32,665.72,0.324]
[1746942401333,0.24298349,666.31,665.72,0.324]
[1746942404232,0.30016509,666.3,665.72,0.324]
[1746942404630,0.24298349,666.29,665.72,0.324]
[1746942406136,0.3001741,666.28,665.72,0.324]
[1746942406631,0.24298349,666.27,665.72,0.324]
[1746942407938,0.30018311,666.26,665.72,0.324]
[1746942408337,0.24298349,666.25,665.72,0.324]
[1746942408836,0.30019212,666.24,665.72,0.324]
[1746942409139,0.24298349,666.23,665.72,0.324]
[1746942409437,0.30020113,666.22,665.72,0.324]
[1746942410042,0.24298349,666.21,665.72,0.324]
[1746942410439,0.30021014,666.2,665.72,0.324]
[1746942411040,0.24298349,666.19,665.72,0.324]
[1746942411235,0.30021915,666.18,665.72,0.324]
[1746942411643,0.24298349,666.17,665.72,0.324]
[1746942411834,0.30022817,666.16,665.72,0.324]
[1746942412743,0.24303732,666.15,665.72,0.324]
[1746942413641,0.30023718,666.14,665.72,0.324]
[1746942414342,0.24302611,666.13,665.72,0.324]
[1746942414541,0.3002462,666.12,665.72,0.324]
[1746942415143,0.24302611,666.11,665.72,0.324]
[1746942415344,0.30025521,666.1,665.72,0.324]
[1746942419245,0.24303279,666.09,665.72,0.324]
[1746942426952,0.24303279,666.09,665.59,0.07039002]
[1746942429254,0.30026423,666.08,665.59,0.07039002]
[1746942429455,0.24303279,666.07,665.59,0.07039002]
[1746942430451,0.30027324,666.06,665.59,0.07039002]
[1746942430857,0.24303279,666.05,665.59,0.07039002]
[1746942431958,0.30028226,666.04,665.59,0.07039002]
[1746942432258,0.24303279,666.03,665.59,0.07039002]
[1746942432458,0.30029128,666.02,665.59,0.07039002]
[1746942432953,0.24303279,666.01,665.59,0.07039002]
[1746942433158,0.3003003,666.0,665.59,0.07039002]
[1746942437665,0.24298914,665.99,665.59,0.07039002]
[1746942441671,0.26142907,665.98,665.59,0.07039002]
[1746942441971,0.24298914,665.97,665.59,0.07039002]
[1746942444269,0.24298914,665.99,665.59,0.07039002]
[1746942444775,0.26143103,665.98,665.59,0.07039002]
[1746942445177,0.24298914,665.97,665.59,0.07039002]
[1746942447082,0.24298914,665.99,665.59,0.07039002]
[1746942447680,0.26143103,665.98,665.59,0.07039002]
[1746942448282,0.24298914,665.97,665.59,0.07039002]
[1746942449581,0.30031833,665.96,665.59,0.07039002]
[1746942449979,0.24298914,665.95,665.59,0.07039002]
[1746942450681,0.26144478,665.94,665.59,0.07039002]
[1746942450980,0.24298914,665.93,665.59,0.07039002]
[1746942451681,0.30033637,665.92,665.59,0.07039002]
[1746942452077,0.24298914,665.91,665.59,0.07039002]
[1746942454287,0.30034539,665.9,665.59,0.07039002]
[1746942455079,0.24298914,665.89,665.59,0.07039002]
[1746942455284,0.30035441,665.88,665.59,0.07039002]
[1746942455685,0.24298914,665.87,665.59,0.07039002]
[1746942456079,0.30035441,665.88,665.59,0.07039002]
[1746942456485,0.24303402,665.87,665.59,0.07039002]
[1746942464095,0.30035441,665.88,665.59,0.07039002]
[1746942464293,0.24301246,665.87,665.59,0.07039002]
[1746942465593,0.30036343,665.86,665.59,0.07039002]
[1746942465794,0.24301246,665.85,665.59,0.07039002]
[1746942465994,0.30037246,665.84,665.59,0.07039002]
[1746942466294,0.24301246,665.83,665.59,0.07039002]
[1746942468796,0.30038148,665.82,665.59,0.07039002]
[1746942469296,0.24301246,665.81,665.59,0.07039002]
[1746942469494,0.3003905,665.8,665.59,0.07039002]
[1746942470195,0.24301246,665.79,665.59,0.07039002]
[1746942471797,0.30039953,665.78,665.59,0.07039002]
[1746942472193,0.24301246,665.77,665.59,0.07039002]
[1746942472393,0.30040855,665.76,665.59,0.07039002]
[1746942472896,0.24301246,665.75,665.59,0.07039002]
[1746942477500,0.30041758,665.74,665.59,0.07039002]
[1746942481706,0.24277661,665.73,665.59,0.07039002]
[1746942484615,0.30041758,665.74,665.59,0.07039002]
[1746942494913,0.24266137,665.73,665.59,0.07039002]
[1746942495816,0.3004266,665.72,665.59,0.07039002]
[1746942496417,0.24266137,665.71,665.59,0.07039002]
[1746942496717,0.30043563,665.7,665.59,0.07039002]
[1746942497214,0.24266137,665.69,665.59,0.07039002]
[1746942497412,0.30044465,665.68,665.59,0.07039002]
[1746942497916,0.24266137,665.67,665.59,0.07039002]
[1746942498119,0.30045368,665.66,665.59,0.07039002]
[1746942498818,0.24265506,665.65,665.59,0.07039002]
[1746942499017,0.30046271,665.64,665.59,0.07039002]
[1746942500320,0.24258105,665.63,665.59,0.07039002]
[1746942500519,0.54304827,665.63,665.59,0.07039002]
[1746942501222,0.30046722,665.63,665.59,0.07039002]
[1746942501622,0.2425745,665.62,665.59,0.07039002]
[1746942507427,0.30046722,665.63,665.59,0.07039002]
[1746942507726,0.2425848,665.62,665.59,0.07039002]
[1746942509028,0.30046722,665.63,665.59,0.07039002]
[1746942521334,0.24242718,665.62,665.59,0.07039002]
[1746942529740,0.30046722,665.63,665.59,0.07039002]
[1746942547150,1.94559376,666.43,665.59,0.07039002]
[1746942547350,0.30011554,666.41,665.59,0.07039002]
[1746942547950,0.50390219,666.4,665.59,0.07039002]
[1746942548253,0.30012905,666.38,665.59,0.07039002]
[1746942548746,0.2425595,666.37,665.59,0.07039002]
[1746942549249,0.30013806,666.36,665.59,0.07039002]
[1746942549663,0.2425595,666.35,665.59,0.07039002]
[1746942549847,0.30014707,666.34,665.59,0.07039002]
[1746942550252,0.2425595,666.33,665.59,0.07039002]
[1746942550548,0.30015608,666.32,665.59,0.07039002]
[1746942550752,0.2425595,666.31,665.59,0.07039002]
[1746942550951,0.30016509,666.3,665.59,0.07039002]
[1746942551250,0.30016509,666.3,665.6,0.311]
[1746942551750,0.2425595,666.29,665.6,0.311]
[1746942551951,0.30016509,666.3,665.6,0.311]
[1746942552253,0.24252269,666.29,665.6,0.311]
[1746942552754,0.26139569,666.28,665.6,0.311]
[1746942553454,0.24252269,666.27,665.6,0.311]
[1746942554955,0.24252269,666.29,665.6,0.311]
[1746942555757,0.26140158,666.28,665.6,0.311]
[1746942555955,0.24252269,666.27,665.6,0.311]
[1746942557856,0.24252269,666.29,665.6,0.311]
[1746942558757,0.26140158,666.28,665.6,0.311]
[1746942559153,0.24252269,666.27,665.6,0.311]
[1746942560359,0.30018311,666.26,665.6,0.311]
[1746942560960,0.24252269,666.25,665.6,0.311]
[1746942562862,0.30019212,666.24,665.6,0.311]
[1746942563061,0.24252269,666.23,665.6,0.311]
[1746942563462,0.30020113,666.22,665.6,0.311]
[1746942563861,0.24252269,666.21,665.6,0.311]
[1746942564963,0.30021014,666.2,665.6,0.311]
[1746942565263,0.24252269,666.19,665.6,0.311]
[1746942567070,0.30021014,666.2,665.6,0.311]
[1746942567470,0.24266556,666.19,665.6,0.311]
[1746942567667,0.30021915,666.18,665.6,0.311]
[1746942568370,0.24266556,666.17,665.6,0.311]
[1746942568570,0.30022817,666.16,665.6,0.311]
[1746942569172,0.50406419,666.15,665.6,0.311]
[1746942569471,0.54290274,666.14,665.6,0.311]
[1746942569672,0.30024169,666.13,665.6,0.311]